bitfinex-derivatives/quotes_BNBF0:USTF0_20250309
["timestamp","ask_amount","ask_price","bid_price","bid_amount"]
[1741545622083,1.76834349,552.97,551.14,1.32397652]
[1741545622383,4.72587584,552.96,551.15,0.30323916]
[1741545622585,8.15558579,552.95,551.17,0.36286445]
[1741545622879,1.76834349,552.91,551.18,0.30324534]
[1741545623084,4.71793603,552.9,551.19,0.30324534]
[1741545623281,8.15558579,552.89,551.2,0.30324534]
[1741545623581,8.15558579,552.88,551.21,0.30324534]
[1741545623786,1.76834349,552.81,551.21,0.30324534]
[1741545624080,4.71793603,552.8,551.22,0.30324534]
[1741545624281,2.90864668,552.79,551.22,0.30324534]
[1741545624588,3.73446524,552.79,551.23,0.30324534]
[1741545624785,3.73446524,552.79,551.24,0.30324534]
[1741545625081,1.43742799,552.78,551.25,0.30324534]
[1741545625285,1.43742799,552.78,551.26,0.30324534]
[1741545625488,1.43742799,552.78,551.27,0.30324534]
[1741545625706,1.215,552.77,551.28,0.30324534]
[1741545625886,1.215,552.77,551.29,0.30324534]
[1741545626085,1.11498322,552.76,551.3,0.3032681]
[1741545626283,1.215,552.77,551.31,0.3032681]
[1741545626586,3.701738,552.75,551.32,0.3032681]
[1741545626785,2.895133,552.74,551.33,0.3032681]
[1741545626988,4.70484157,552.73,551.34,0.3032681]
[1741545627191,2.895133,552.72,551.34,0.3032681]
[1741545627385,3.701738,552.74,551.17,0.36286445]
[1741545627386,2.895133,552.71,551.35,0.3032681]
[1741545627586,3.701738,552.74,551.36,0.3032681]
[1741545627785,3.701738,552.7,551.37,0.3032681]
[1741545627984,3.701738,552.7,551.38,0.3032496]
[1741545628189,3.701738,552.7,551.39,0.3032496]
[1741545628497,0.31517457,552.76,551.4,0.3032496]
[1741545628687,0.31517457,552.76,551.41,0.3032496]
[1741545628894,0.31517457,552.76,551.42,0.3032496]
[1741545629193,1.42167983,552.75,551.43,0.3032496]
[1741545629394,1.42167983,552.75,551.44,0.3032496]
[1741545629594,1.215,552.77,551.45,0.3032496]
[1741545629889,0.31513318,552.74,551.46,0.3032496]
[1741545630195,0.31513318,552.74,551.47,0.3032496]
[1741545630395,0.31513318,552.74,551.48,0.3032496]
[1741545630696,1.42108966,552.73,551.49,0.3032496]
[1741545630990,1.42108966,552.72,551.18,0.3032496]
[1741545631195,1.42108966,552.72,551.19,0.3032496]
[1741545631695,1.42108966,552.72,551.2,0.3032496]
[1741545631887,1.42108966,552.71,551.18,0.3032496]
[1741545632091,1.42108966,552.71,551.19,0.3032496]
[1741545632289,1.42108966,552.71,551.2,0.3032496]
[1741545632492,1.42108966,552.71,551.18,0.3032496]
[1741545632790,1.42108966,552.71,551.19,0.3032496]
[1741545632995,1.42108966,552.71,551.2,0.3032496]
[1741545633296,1.42108966,552.7,551.21,0.3032496]
[1741545633497,4.34135772,552.7,551.22,0.3032496]
[1741545633696,5.23707093,552.69,551.23,0.3032496]
[1741545633891,8.13447877,552.68,551.18,0.3032496]
[1741545634097,5.23049086,552.67,551.19,0.3032496]
[1741545634292,0.31513318,552.74,551.18,0.3032496]
[1741545634293,8.92956182,552.66,551.18,0.3032496]
[1741545634497,5.23048686,552.65,551.18,0.3032496]
[1741545634794,8.92956914,552.64,551.18,0.3032496]
[1741545634999,4.6872261,552.63,551.18,0.3032496]
[1741545635296,8.38630838,552.62,551.18,0.3032496]
[1741545635494,4.6872261,552.61,551.18,0.3032496]
[1741545635795,4.68314735,552.6,551.18,0.3032496]
[1741545635997,5.22387904,552.59,551.18,0.3032496]
[1741545636191,5.22387904,552.58,551.18,0.3032496]
[1741545636396,4.68055905,552.57,551.18,0.3032496]
[1741545636691,2.87212385,552.56,551.2,0.3628447]
[1741545636888,4.80536826,552.55,551.2,0.3628447]
[1741545637094,1.10217237,552.54,551.21,0.3032496]
[1741545637293,3.69908228,552.55,551.22,0.3032496]
[1741545637490,1.42108966,552.66,551.23,0.3032496]
[1741545637797,1.42108966,552.66,551.24,0.3032496]
[1741545637998,1.42108966,552.66,551.25,0.3032496]
[1741545638192,1.42108966,552.72,551.26,0.3032496]
[1741545638391,1.42108966,552.72,551.27,0.3032496]
[1741545638592,1.42108966,552.72,551.28,0.3032496]
[1741545638797,0.31513318,552.74,551.28,0.3032496]
[1741545638993,0.31513318,552.74,551.29,0.3032496]
[1741545639391,0.31513318,552.74,551.3,0.3032496]
[1741545639594,0.31513318,552.74,551.31,0.3032496]
[1741545639996,0.31513318,552.74,551.32,0.3032496]
[1741545640197,0.31513318,552.74,551.33,0.3032496]
[1741545640394,0.31513318,552.74,551.34,0.3032496]
[1741545640598,0.31513318,552.74,551.35,0.3032496]
[1741545640795,0.31513318,552.74,551.36,0.3032496]
[1741545640997,0.31513318,552.74,551.37,0.3032496]
[1741545641193,0.31513318,552.74,551.38,0.3032496]
[1741545641499,0.31513318,552.74,551.2,0.3628447]
[1741545641500,0.31513318,552.74,551.39,0.3032496]
[1741545641705,0.31513318,552.74,551.21,0.3032496]
[1741545641900,0.31513318,552.74,551.22,0.3032496]
[1741545642103,0.31513318,552.74,551.21,0.3032496]
[1741545642301,0.31513318,552.74,551.22,0.3032496]
[1741545642500,0.31513318,552.74,551.23,0.3032496]
[1741545642801,0.31513318,552.74,551.24,0.3032496]
[1741545643198,0.31513318,552.74,551.25,0.3032496]
[1741545643401,0.31513318,552.74,551.21,0.3032496]
[1741545643601,0.31513318,552.74,551.22,0.3032496]
[1741545643797,0.31513318,552.74,551.24,0.36281837]
[1741545643999,0.31513318,552.74,551.25,0.3032496]
[1741545644204,0.31513318,552.74,551.24,0.36281837]
[1741545644205,0.31513318,552.74,551.26,0.30336049]
[1741545644398,0.31513318,552.74,551.27,0.30337134]
[1741545644596,0.31513318,552.74,551.28,0.30337134]
[1741545644801,0.31513318,552.74,551.29,0.30337134]
[1741545644998,0.31513318,552.74,551.3,0.30337134]
[1741545645202,0.31513318,552.74,551.31,0.30337134]
[1741545645402,0.31513318,552.74,551.32,0.30337134]
[1741545645600,0.31513318,552.74,551.33,0.30337134]
[1741545645796,0.31513318,552.74,551.24,0.36281837]
[1741545646001,0.31513318,552.74,551.25,0.30339479]
[1741545646203,0.31513318,552.74,551.26,0.30339479]
[1741545646401,0.31513318,552.74,551.28,0.36279204]
[1741545646604,0.31513318,552.74,551.29,0.30339479]
[1741545646806,0.31513318,552.74,551.3,0.30339479]
[1741545647005,0.31513318,552.74,551.31,0.30339479]
[1741545647205,0.31513318,552.74,551.32,0.30339479]
[1741545647501,0.31513318,552.74,551.33,0.30341698]
[1741545647702,0.31513318,552.74,551.34,0.30341698]
[1741545647905,0.31513318,552.74,551.35,0.30341698]
[1741545648104,0.31513318,552.74,551.36,0.30341698]
[1741545648508,0.31513318,552.74,551.37,0.30341698]
[1741545648811,0.31513318,552.74,551.38,0.30341698]
[1741545649009,0.31513318,552.74,551.39,0.30341698]
[1741545649209,0.31513318,552.74,551.4,0.30341698]
[1741545649605,0.31513318,552.74,551.41,0.30341698]
[1741545649811,0.31513318,552.74,551.42,0.30341698]
[1741545650110,0.31513318,552.74,551.43,0.30341698]
[1741545650306,0.31513318,552.74,551.44,0.30341698]
[1741545650511,3.68157502,552.74,550.69,0.30341698]
[1741545650711,1.09800845,552.73,550.7,0.30341698]
[1741545650911,1.41334152,552.73,550.71,0.30341698]
[1741545651111,0.31533307,552.73,550.68,0.3153345]
[1741545651307,0.31533307,552.73,550.69,0.30347767]
[1741545651504,0.31533307,552.73,550.7,0.30347767]
[1741545651709,1.4035824,552.72,550.71,0.30347767]
[1741545651908,1.4035824,552.72,550.72,0.30347767]
[1741545652107,1.09800845,552.72,550.73,0.30347767]
[1741545652308,0.31533307,552.73,550.74,0.30347767]
[1741545652507,0.31533307,552.73,550.75,0.30347767]
[1741545652714,0.31533307,552.73,550.76,0.30347767]
[1741545653108,0.31533307,552.73,550.77,0.30347767]
[1741545653312,0.31533307,552.73,550.78,0.30347767]
[1741545653513,0.31533307,552.73,550.79,0.30347767]
[1741545653715,0.31533307,552.73,550.8,0.30347767]
[1741545653915,0.31533307,552.73,550.81,0.30347767]
[1741545654115,1.4035824,552.72,550.82,0.30347767]
[1741545654311,1.4035824,552.72,550.83,0.30347767]
[1741545654609,1.4035824,552.71,550.84,0.30347767]
[1741545654811,4.2576035,552.71,550.84,0.30347767]
[1741545655009,4.2576035,552.71,550.85,0.30347767]
[1741545655213,4.77958347,552.7,550.86,0.30347767]
[1741545655513,1.09800845,552.69,550.87,0.30347767]
[1741545655715,1.4035824,552.68,550.88,0.30347767]
[1741545655909,2.50159085,552.68,550.89,0.30347767]
[1741545656214,1.09800845,552.67,550.9,0.30347767]
[1741545656416,2.50159085,552.72,550.91,0.30347767]
[1741545656611,0.31533307,552.73,550.92,0.30347767]
[1741545656612,2.50159085,552.71,550.92,0.30347767]
[1741545656810,1.09800845,552.7,550.93,0.30347767]
[1741545657014,1.09800845,552.7,550.94,0.30347767]
[1741545657213,1.4035824,552.69,550.95,0.30347767]
[1741545657510,2.50159085,552.69,550.96,0.30347767]
[1741545657716,2.50159085,552.69,550.97,0.30347767]
[1741545657916,1.4035824,552.68,550.98,0.30347767]
[1741545658216,1.4035824,552.68,550.99,0.30346044]
[1741545658417,1.4035824,552.68,551.0,0.30346044]
[1741545658616,1.4035824,552.67,551.0,0.30346044]
[1741545658812,1.4035824,552.67,551.01,0.30346044]
[1741545659017,1.4035824,552.67,551.02,0.30347931]
[1741545659315,1.09921291,552.69,551.03,0.30347931]
[1741545659619,3.68157502,552.69,551.04,0.30347931]
[1741545659914,0.31532021,552.68,551.05,0.30347931]
[1741545660114,0.31532021,552.68,551.06,0.30347931]
[1741545660318,0.31532021,552.68,551.07,0.30347931]
[1741545660518,0.31532021,552.68,551.08,0.30347931]
[1741545660716,0.31532021,552.68,551.09,0.30347931]
[1741545661021,0.31532021,552.68,551.1,0.30347931]
[1741545661214,0.31532021,552.68,551.11,0.30347931]
[1741545661520,0.31532021,552.68,551.12,0.30347931]
[1741545661720,0.31532021,552.68,551.13,0.30347931]
[1741545662019,0.31532021,552.68,551.14,0.30347931]
[1741545662221,0.31532021,552.68,551.15,0.30347931]
[1741545662419,0.31532021,552.68,550.77,0.30347931]
[1741545662619,0.31532021,552.68,550.78,0.30347931]
[1741545662820,0.31532021,552.68,550.89,1.32397652]
[1741545663019,0.31532021,552.68,550.9,0.30347931]
[1741545663319,0.31532021,552.68,550.91,0.30347931]
[1741545663714,0.31532021,552.68,550.92,0.30347931]
[1741545663919,1.4035824,552.67,550.93,0.30347931]
[1741545664218,1.4035824,552.67,550.94,0.30347931]
[1741545664419,1.10141339,552.67,550.95,0.30347931]
[1741545664622,1.4167336,552.68,550.96,0.30347931]
[1741545664818,1.4035824,552.66,550.96,1.32397652]
[1741545665016,1.4035824,552.66,550.97,0.3034308]
[1741545665221,1.4035824,552.66,550.98,0.3034308]
[1741545665419,0.31532021,552.68,550.99,0.3034308]
[1741545665717,0.31532021,552.68,551.0,0.3034308]
[1741545665921,0.31532021,552.68,551.01,0.3034308]
[1741545666124,0.31532021,552.68,551.02,0.3034308]
[1741545666323,0.31532021,552.68,551.03,0.3034308]
[1741545666526,0.31532021,552.68,550.96,1.32397652]
[1741545666527,0.31532021,552.68,551.14,1.32397652]
[1741545666720,0.31532021,552.68,551.15,0.3033746]
[1741545666921,0.31532021,552.68,551.16,0.3033746]
[1741545667222,0.31532021,552.68,551.17,0.3033746]
[1741545667417,0.31532021,552.68,551.18,0.3033746]
[1741545667726,0.31532021,552.68,551.19,0.3033746]
[1741545668025,0.31532021,552.68,551.2,0.3033746]
[1741545668223,1.42167871,552.68,551.2,0.3033746]
[1741545668423,1.42167871,552.68,551.21,0.3033746]
[1741545668624,1.4035824,552.67,551.22,0.3033746]
[1741545668823,1.71880693,552.67,551.23,0.3033746]
[1741545669025,1.71880693,552.67,551.24,0.3033939]
[1741545669222,2.51235507,552.66,551.26,0.3628052]
[1741545669524,2.51235507,552.66,551.27,0.3033939]
[1741545669725,1.4035824,552.66,551.28,0.3033939]
[1741545669921,1.4035824,552.66,551.26,0.3628052]
[1741545669922,1.4035824,552.65,551.3,0.36277888]
[1741545670127,1.4035824,552.65,551.31,0.3033939]
[1741545670627,3.68157502,552.64,551.31,0.3033939]
[1741545670923,5.2403354,552.63,551.32,0.3033939]
[1741545671226,8.13738066,552.62,551.33,0.3033939]
[1741545671426,8.13738066,552.62,551.3,0.36277888]
[1741545671427,8.13738066,552.61,551.34,0.3033939]
[1741545671727,1.05696577,552.52,551.35,0.3033939]
[1741545671928,2.8932399,552.51,551.31,0.3033939]
[1741545672126,1.06075237,552.48,551.32,0.3033939]
[1741545672326,1.06075237,552.46,551.31,0.3033939]
[1741545672627,1.76834349,552.38,551.32,0.3033939]
[1741545672826,5.82186553,552.37,551.31,0.3033939]
[1741545673030,8.14567634,552.36,551.32,0.3033939]
[1741545673224,8.14567634,552.35,551.31,0.3033939]
[1741545673424,1.76834349,552.23,551.32,0.3033939]
[1741545673624,5.24778037,552.22,551.31,0.3033939]
[1741545673825,8.14567634,552.21,551.32,0.3033939]
[1741545674020,1.76834349,552.17,551.32,0.3033939]
[1741545674224,4.70442488,552.16,551.33,0.3033939]
[1741545674526,8.14567634,552.15,551.34,0.3033939]
[1741545674726,8.14567634,552.14,551.31,0.3033939]
[1741545674927,8.14567634,552.13,551.3,0.36277888]
[1741545675122,8.14567634,552.12,551.3,0.36277888]
[1741545675322,1.06075237,552.08,551.31,0.30377464]
[1741545675528,9.20642871,552.07,551.32,0.30379187]
[1741545675731,1.06420129,552.01,551.31,0.30379187]
[1741545676030,5.25698619,552.0,551.32,0.30379187]
[1741545676230,1.76834349,551.94,551.31,0.30379187]
[1741545676426,1.76834349,551.94,551.32,0.30379187]
[1741545676427,1.81118498,551.93,551.32,0.30379187]
[1741545676727,4.71343629,551.92,551.3,0.36277888]
[1741545677032,8.15738244,551.91,551.31,0.30382867]
[1741545677231,8.15738244,551.9,551.31,0.30382867]
[1741545677433,1.76834349,551.88,551.3,0.36277888]
[1741545677635,5.25901548,551.87,551.3,0.36277888]
[1741545677935,1.76834349,551.82,551.3,0.36277888]
[1741545678135,4.71522659,551.81,551.3,0.36277888]
[1741545678330,8.15977593,551.8,551.3,0.36277888]
[1741545678532,8.15977593,551.79,551.3,0.36277888]
[1741545678735,8.15988871,551.78,551.3,0.36277888]
[1741545678938,8.15988871,551.77,551.3,0.36277888]
[1741545679130,8.15988871,551.76,551.3,0.36277888]
[1741545679336,7.61599469,551.75,551.3,0.36277888]
[1741545679635,7.61599469,551.74,551.3,0.36277888]
[1741545679836,4.22546904,551.75,550.41,1.32397652]
[1741545679837,8.15988871,551.73,550.41,1.32397652]
[1741545680030,5.25912061,551.72,550.43,0.36335228]
[1741545680231,4.71522659,551.71,550.44,0.30395407]
[1741545680436,4.71522659,551.7,550.45,0.30395407]
[1741545680637,5.25919394,551.69,550.46,0.30395407]
[1741545680836,5.25918737,551.68,550.47,0.30395407]
[1741545681036,8.39680161,551.67,550.47,0.30395407]
[1741545681338,1.1162505,551.66,550.48,0.30395407]
[1741545681531,1.1135691,551.65,550.44,0.30395407]
[1741545681737,1.1135691,551.64,550.45,0.30395407]
[1741545682039,3.68157502,551.65,550.46,0.30395407]
[1741545682237,1.4035824,551.63,550.44,0.30395407]
[1741545682437,1.4035824,551.63,550.45,0.30395407]
[1741545682737,4.79666675,551.93,550.46,0.30395407]
[1741545682937,4.79666675,551.93,550.43,0.36335228]
[1741545682938,3.68280688,551.93,550.47,0.30395407]
[1741545683142,1.11432034,551.92,550.48,0.30395407]
[1741545683339,4.79712722,551.91,550.49,0.30395407]
[1741545683638,3.68280688,551.91,550.5,0.30395407]
[1741545683833,3.68280688,551.91,550.51,0.30395407]
[1741545684038,1.4035824,551.9,550.52,0.30395407]
[1741545684433,1.4035824,551.9,550.53,0.30395407]
[1741545684636,1.76834349,552.17,550.44,0.30395407]
[1741545684941,1.11392086,551.99,550.45,0.30395407]
[1741545685134,1.11392086,551.98,550.44,0.30395407]
[1741545685338,1.11392086,551.97,550.45,0.30395407]
[1741545685535,3.70277107,551.97,550.44,0.30395407]
[1741545685740,3.70277107,551.97,550.47,0.36332588]
[1741545686036,3.70277107,551.97,550.48,0.30395407]
[1741545686244,0.31557756,551.98,550.49,0.30395407]
[1741545686438,0.31557756,551.98,550.5,0.30395407]
[1741545686639,0.31557756,551.98,550.51,0.30395407]
[1741545686842,0.31557756,551.98,550.52,0.30395407]
[1741545687135,0.31557756,551.98,550.53,0.30395407]
[1741545687340,0.31557756,551.98,550.54,0.30395407]
[1741545687541,0.31557756,551.98,550.47,0.36332588]
[1741545687542,2.27880874,552.29,550.55,0.30395407]
[1741545687741,0.31545598,552.08,550.56,0.30395407]
[1741545688035,0.31545598,552.08,550.57,0.30395407]
[1741545688235,0.31545598,552.08,550.58,0.30395407]
[1741545688434,0.31545598,552.08,550.59,0.30395407]
[1741545688634,0.31545598,552.08,550.6,0.30395407]
[1741545688840,0.31545598,552.08,550.61,0.30395407]
[1741545689039,0.31545598,552.08,550.62,0.30395407]
[1741545689238,0.31545598,552.08,550.63,0.30395407]
[1741545689636,1.42532693,552.22,550.64,0.30395407]
[1741545690137,0.31552892,551.99,550.65,0.30395407]
[1741545690442,0.31552892,551.99,550.66,0.30395407]
[1741545690645,0.31552892,551.99,550.52,1.32397652]
[1741545690836,0.31552892,551.99,550.53,0.30360546]
[1741545691035,0.31552892,551.99,550.54,0.30360546]
[1741545691241,0.31552892,551.99,550.56,0.36326649]
[1741545691442,0.31552892,551.99,550.57,0.30360546]
[1741545691636,0.31552892,551.99,550.56,0.36326649]
[1741545691637,0.31552892,551.99,550.58,0.30360546]
[1741545691837,0.31552892,551.99,550.59,0.30360546]
[1741545692143,3.70549888,552.36,550.6,0.30360546]
[1741545692335,0.31544741,552.05,550.61,0.30360546]
[1741545692538,0.31544741,552.05,550.62,0.30360546]
[1741545692740,0.31544741,552.05,550.63,0.30360546]
[1741545693040,0.31544741,552.05,550.64,0.30360546]
[1741545693245,0.31544741,552.05,550.65,0.66681257]
[1741545693444,0.31544741,552.05,550.66,0.30359551]
[1741545693746,0.31544741,552.05,550.67,0.30359551]
[1741545693943,0.31544741,552.05,550.68,0.30359551]
[1741545694143,0.31544741,552.05,550.69,0.30359551]
[1741545694446,0.31544741,552.05,550.7,0.30359551]
[1741545694640,0.31544741,552.05,550.71,0.30359551]
[1741545694846,0.31544741,552.05,550.72,0.30359551]
[1741545695047,0.31544741,552.05,550.65,0.36320711]
[1741545695346,0.31544741,552.05,550.66,0.30361014]
[1741545695643,1.42689426,552.04,550.67,0.3036874]
[1741545695839,4.82298563,552.04,550.67,0.3036874]
[1741545696040,2.90116906,552.03,550.68,0.3036874]
[1741545696245,1.11591942,552.02,550.69,0.3036874]
[1741545696445,1.11591942,552.01,550.7,0.3036874]
[1741545696744,1.42689426,552.0,550.71,0.3036874]
[1741545696946,1.42689426,552.0,550.72,0.3036874]
[1741545697142,1.42689426,552.0,550.73,0.3037284]
[1741545697143,1.11541613,551.99,550.73,0.3037284]
[1741545697343,2.08441613,551.99,550.74,0.3037284]
[1741545697542,3.70759772,551.98,550.74,0.3037284]
[1741545697750,3.70759772,551.98,550.75,0.3037284]
[1741545697947,3.70759772,551.97,550.77,0.36312798]
[1741545698249,3.70759772,551.97,550.78,0.3037284]
[1741545698448,3.70759772,551.97,550.77,0.36312798]
[1741545698449,3.70759772,551.97,550.79,0.3037284]
[1741545698651,3.70759772,551.97,550.8,0.3037284]
[1741545698843,0.969,551.99,550.8,0.3037284]
[1741545699046,0.969,551.99,550.77,0.36312798]
[1741545699047,0.969,551.99,550.81,0.3037284]
[1741545699243,0.969,551.99,550.82,0.3037284]
[1741545699454,0.969,551.99,550.77,0.36312798]
[1741545699455,0.969,551.99,550.83,0.3037284]
[1741545699651,1.42651528,551.98,550.84,0.3037284]
[1741545699851,1.42651528,551.98,550.85,0.3037284]
[1741545700046,1.42651528,551.97,550.86,0.3037284]
[1741545700252,1.42651528,551.97,550.87,0.3037284]
[1741545700547,1.42651528,551.97,550.88,0.30367894]
[1741545700752,0.969,551.99,550.89,0.30367894]
[1741545700947,0.969,551.99,550.9,0.30367894]
[1741545701154,0.969,551.99,550.91,0.30367894]
[1741545701458,0.969,551.99,550.92,0.30367894]
[1741545701854,0.31544741,551.98,550.93,0.30367894]
[1741545702050,0.31544741,551.98,550.94,0.30367894]
[1741545702251,0.969,551.99,550.95,0.30367894]
[1741545702462,0.969,551.99,550.96,0.30367894]
[1741545702752,0.31545026,551.98,550.98,0.36298958]
[1741545702952,0.31545026,551.98,550.99,0.30367894]
[1741545703261,0.31545026,551.98,551.0,0.30367894]
[1741545703450,0.31545026,551.98,550.98,0.36298958]
[1741545703451,0.31545026,551.98,551.01,0.30367894]
[1741545703657,0.31545026,551.98,551.02,0.30367894]
[1741545703859,0.31545026,551.98,551.03,0.30367894]
[1741545704052,0.31545026,551.98,550.99,0.30367894]
[1741545704251,0.31545026,551.98,551.0,0.30367894]
[1741545704452,0.31545026,551.98,550.99,0.30367894]
[1741545705854,0.31545026,551.98,550.33,0.31544026]
[1741545705855,0.31545026,551.98,551.01,0.36296981]
[1741545706054,0.31545026,551.98,551.02,0.3037124]
[1741545706655,0.31545026,551.98,551.01,0.36296981]
[1741545706862,1.42971553,551.97,551.02,0.30376278]
[1741545707252,2.54769857,551.97,551.02,0.30376278]
[1741545707457,1.42971553,551.96,551.02,0.30376278]
[1741545707860,1.42971553,551.95,551.03,0.30382175]
[1741545708054,2.54769857,551.95,551.02,0.30382175]
[1741545708759,6.14948247,551.94,551.02,0.30382175]
[1741545708964,8.4339982,551.93,551.02,0.30382175]
[1741545709258,4.71976694,551.92,551.02,0.30382175]
[1741545709454,3.45095332,551.91,551.02,0.30382175]
[1741545709654,5.83120132,551.9,551.02,0.30382175]
[1741545709859,3.45095332,551.89,551.02,0.30382175]
[1741545710059,4.71976694,551.88,551.02,0.30382175]
[1741545710360,8.16447981,551.87,551.02,0.30382175]
[1741545710560,8.16447981,551.86,551.02,0.30382175]
[1741545710757,8.16447981,551.85,551.02,0.30382175]
[1741545710953,8.16447981,551.84,551.02,0.30382175]
[1741545711154,8.16447981,551.83,551.02,0.30382175]
[1741545711354,1.38146298,551.86,551.03,0.30396179]
[1741545711355,8.16447981,551.82,551.03,0.30396179]
[1741545711555,8.16447981,551.81,551.02,0.30396179]
[1741545711755,8.16447981,551.8,551.02,0.30396179]
[1741545711965,1.76834349,551.76,551.03,0.36295664]
[1741545712154,1.76834349,551.76,551.04,0.30396179]
[1741545712360,1.76834349,551.76,551.05,0.36294347]
[1741545712559,1.11796856,551.75,551.06,0.30396179]
[1741545712761,1.76834349,551.76,551.06,0.30396179]
[1741545712958,3.71423126,551.75,551.07,0.36293029]
[1741545713356,3.71423126,551.75,551.08,0.30381627]
[1741545713968,2.28451573,551.85,551.08,0.30381627]
[1741545714662,0.31562192,551.86,551.09,0.36291712]
[1741545715159,0.31562192,551.86,551.1,0.30373256]
[1741545715867,0.31562192,551.86,551.11,0.36290395]
[1741545716160,0.31562192,551.86,551.12,0.30373256]
[1741545716362,0.31562192,551.86,551.13,0.36289078]
[1741545716559,0.31562192,551.86,551.14,0.30373256]
[1741545716961,1.43104301,551.85,551.14,0.30373256]
[1741545717762,0.31562192,551.86,551.14,0.30373256]
[1741545719869,1.387,551.85,551.14,0.30373256]
[1741545720667,1.387,551.85,551.15,0.36287761]
[1741545720868,1.387,551.85,551.16,0.30373256]
[1741545721670,1.387,551.85,551.17,0.66655549]
[1741545721872,1.387,551.85,551.18,0.6665489]
[1741545722277,1.387,551.85,551.19,0.30369104]
[1741545722569,1.387,551.85,551.2,0.3628447]
[1741545722773,1.7024374,551.85,551.21,0.30369104]
[1741545723170,1.387,551.85,551.21,0.30369104]
[1741545723578,1.387,551.85,551.22,0.30369104]
[1741545723878,1.387,551.85,551.23,0.30369104]
[1741545724078,1.387,551.85,551.24,0.30369104]
[1741545724377,1.387,551.85,551.25,0.30369104]
[1741545724581,1.387,551.85,551.26,0.30369104]
[1741545724780,1.387,551.85,551.21,0.30369104]
[1741545725074,1.387,551.85,551.22,0.30369104]
[1741545725374,1.387,551.85,551.23,0.30354736]
[1741545725579,1.387,551.85,551.24,0.30354736]
[1741545725780,1.387,551.85,551.25,0.66635915]
[1741545725975,1.387,551.85,551.26,0.30354736]
[1741545726378,1.387,551.85,551.27,0.36279862]
[1741545726678,1.387,551.85,551.28,0.30354736]
[1741545729779,1.387,551.85,551.29,0.30354736]
[1741545729983,1.387,551.85,551.3,0.30354736]
[1741545730182,1.387,551.85,551.28,0.30354736]
[1741545730584,1.387,551.85,551.29,0.3035078]
[1741545730784,0.31533593,552.16,551.28,0.3035078]
[1741545730986,0.31533593,552.16,551.29,0.3035078]
[1741545731281,1.43783568,552.15,551.3,0.3035078]
[1741545731484,1.43783568,552.15,551.31,0.3035078]
[1741545731684,1.43783568,552.14,551.28,0.3035078]
[1741545731877,1.43783568,552.14,551.29,0.3035078]
[1741545732083,1.43783568,552.13,551.28,0.3035078]
[1741545732282,1.43783568,552.13,551.3,0.3035078]
[1741545732483,1.43783568,552.13,551.31,0.3035078]
[1741545732683,1.43783568,552.12,551.28,0.3035078]
[1741545732889,1.75319447,552.12,551.28,0.3035078]
[1741545733080,2.56298507,552.11,551.28,0.3035078]
[1741545733387,1.12503311,552.1,551.28,0.3035078]
[1741545733688,2.93680981,552.09,551.28,0.3035078]
[1741545733886,2.93680981,552.08,551.28,0.3035078]
[1741545734083,1.12503311,552.07,551.28,0.3035078]
[1741545734279,1.12503311,552.06,551.27,0.36279862]
[1741545734483,4.8634933,552.05,551.28,0.30371745]
[1741545734687,1.12503311,552.04,551.28,0.30371745]
[1741545734881,1.12503311,552.03,551.28,0.30371745]
[1741545735085,1.12503311,552.02,551.28,0.30371745]
[1741545735286,1.12503311,552.01,551.28,0.30371745]
[1741545735493,1.12503311,552.0,551.28,0.30371745]
[1741545735689,1.12503311,551.99,551.28,0.30371745]
[1741545735890,1.12503311,551.98,551.28,0.30371745]
[1741545736093,3.73846019,551.98,551.28,0.30371745]
[1741545736786,2.56271451,551.97,551.28,0.30371745]
[1741545736987,1.43783568,551.97,551.28,0.30371745]
[1741545737192,0.31547171,552.0,551.27,0.36279862]
[1741545737193,0.31547171,552.0,551.29,0.30368296]
[1741545737588,2.30062451,552.06,551.29,0.30368296]
[1741545737897,1.315,552.08,551.3,0.30368296]
[1741545738099,1.315,552.08,551.28,0.30368296]
[1741545738285,1.43894929,552.07,551.29,0.30368296]
[1741545738686,1.43894929,552.07,551.3,0.30368296]
[1741545738992,0.31537308,552.06,551.31,0.30368296]
[1741545739189,0.31537308,552.06,551.28,0.30368296]
[1741545739497,0.31537308,552.06,551.29,0.30368296]
[1741545739798,0.31537308,552.06,551.3,0.30368296]
[1741545739997,0.31537308,552.06,551.28,0.30368296]
[1741545740194,0.31537308,552.06,551.29,0.36278546]
[1741545740393,0.31537308,552.06,551.3,0.30368296]
[1741545740790,0.31537308,552.06,551.29,0.36278546]
[1741545740997,0.31537308,552.06,551.3,0.3035192]
[1741545741192,0.31537308,552.06,551.29,0.36278546]
[1741545741395,0.31537308,552.06,551.3,0.30348539]
[1741545741791,0.31537308,552.06,551.31,0.66625769]
[1741545741995,0.31537308,552.06,551.32,0.30348539]
[1741545742297,0.31537308,552.06,551.33,0.36275914]
[1741545742792,0.31537308,552.06,551.34,0.30360767]
[1741545743693,1.315,552.08,551.34,0.30360767]
[1741545743892,0.31534593,552.05,551.35,0.66635365]
[1741545744091,0.31534593,552.05,551.36,0.30360767]
[1741545744592,0.31534593,552.05,551.35,0.36274598]